bitfinex-derivatives/quotes_BTCF0:USTF0_20240817
["timestamp","ask_amount","ask_price","bid_price","bid_amount"]
[1723897091932,0.0934,59196.0,59195.0,0.28722336]
[1723897092533,0.0934,59196.0,59195.0,0.28722535]
[1723897092935,0.1234,59196.0,59195.0,0.28722535]
[1723897095426,0.1234,59196.0,59195.0,0.2030085]
[1723897096343,0.1234,59196.0,59195.0,0.12866322]
[1723897096532,0.1234,59196.0,59195.0,0.2672124]
[1723897099453,0.1234,59196.0,59195.0,0.20300668]
[1723897100542,0.1234,59196.0,59195.0,0.20300768]
[1723897101934,0.186735,59196.0,59195.0,0.20300768]
[1723897104151,0.186735,59196.0,59195.0,0.203008]
[1723897107656,0.186735,59196.0,59195.0,0.07434478]
[1723897108647,0.186735,59196.0,59194.0,0.10134056]
[1723897108945,0.186735,59196.0,59195.0,0.20301308]
[1723897112746,0.186735,59196.0,59195.0,0.20301454]
[1723897112947,0.186735,59196.0,59195.0,0.03717333]
[1723897114747,0.186735,59196.0,59195.0,0.0743495]
[1723897114956,0.186735,59196.0,59195.0,0.03717333]
[1723897115454,0.186735,59196.0,59195.0,0.07434971]
[1723897115658,0.186735,59196.0,59195.0,0.07434967]
[1723897116642,0.186735,59196.0,59195.0,0.15870497]
[1723897116845,0.186735,59196.0,59195.0,0.0843553]
[1723897117044,0.186735,59196.0,59195.0,0.15870696]
[1723897119056,0.186735,59196.0,59195.0,0.07435166]
[1723897119262,0.186735,59196.0,59195.0,0.13856096]
[1723897119953,0.186735,59196.0,59195.0,0.13856162]
[1723897120259,0.186735,59196.0,59195.0,0.13856117]
[1723897120848,0.186735,59196.0,59194.0,0.00025343]
[1723897121049,0.186735,59196.0,59195.0,0.13855864]
[1723897121557,0.186735,59196.0,59195.0,0.13855833]
[1723897121755,0.186735,59196.0,59195.0,0.35156524]
[1723897121959,0.186735,59196.0,59195.0,0.28735545]
[1723897122659,0.186735,59196.0,59195.0,0.20302144]
[1723897122863,0.186735,59196.0,59195.0,0.287357]
[1723897124161,0.186735,59196.0,59195.0,0.1586841]
[1723897124349,0.186735,59196.0,59195.0,0.07434854]
[1723897124954,0.186735,59196.0,59195.0,0.07435007]
[1723897127265,0.186735,59196.0,59195.0,0.2228967]
[1723897127454,0.186735,59196.0,59195.0,0.07435007]
[1723897128156,0.186735,59196.0,59195.0,0.22289694]
[1723897128352,0.186735,59196.0,59195.0,0.15868563]
[1723897129066,0.186735,59196.0,59195.0,0.07435135]
[1723897129656,0.186735,59196.0,59195.0,0.15868691]
[1723897130056,0.186735,59196.0,59195.0,0.07435135]
[1723897131955,0.186735,59196.0,59195.0,0.0371758]
[1723897132158,0.186735,59196.0,59194.0,0.06776229]
[1723897132558,0.186735,59196.0,59194.0,0.00025343]
[1723897133658,0.186735,59196.0,59194.0,0.06776229]
[1723897134962,0.186735,59196.0,59195.0,0.06750886]
[1723897135356,0.186735,59196.0,59194.0,0.06776229]
[1723897136157,0.093335,59196.0,59195.0,0.03717668]
[1723897136359,0.186735,59196.0,59195.0,0.03717668]
[1723897136965,0.186735,59196.0,59195.0,0.03717556]
[1723897140368,0.186735,59196.0,59194.0,0.00025343]
[1723897140870,0.186735,59196.0,59195.0,0.0371756]
[1723897142865,0.186735,59196.0,59195.0,0.07435102]
[1723897143178,0.186735,59196.0,59195.0,0.0371756]
[1723897143569,0.186735,59196.0,59195.0,0.0743506]
[1723897143778,0.186735,59196.0,59195.0,0.03717527]
[1723897147070,0.186735,59196.0,59195.0,0.02192184]
[1723897147680,0.186735,59196.0,59194.0,0.00025343]
[1723897148972,0.3608,59195.0,59194.0,0.00025343]
[1723897149274,0.7508,59195.0,59194.0,0.00025343]
[1723897156374,0.7508,59195.0,59194.0,0.03743052]
[1723897159182,0.7508,59195.0,59194.0,0.07460759]
[1723897159368,0.7508,59195.0,59194.0,0.0374305]
[1723897159879,0.7508,59195.0,59194.0,0.03743051]
[1723897160071,0.8442,59195.0,59194.0,0.03743051]
[1723897160577,0.8442,59195.0,59194.0,0.07460701]
[1723897161079,0.8442,59195.0,59194.0,0.03742993]
[1723897161280,0.8442,59195.0,59194.0,0.15894194]
[1723897161477,0.8442,59195.0,59194.0,0.28762128]
[1723897162477,0.8442,59195.0,59194.0,0.28766765]
[1723897162676,0.8442,59195.0,59194.0,0.20328572]
[1723897162871,0.8442,59195.0,59194.0,0.28766772]
[1723897163483,0.8442,59195.0,59194.0,0.2876671]
[1723897163782,0.8442,59195.0,59194.0,0.2032851]
[1723897164678,0.8442,59195.0,59194.0,0.28767429]
[1723897167184,0.8442,59195.0,59194.0,0.28767395]
[1723897167982,0.8442,59195.0,59194.0,0.15899523]
[1723897168185,0.8442,59195.0,59194.0,0.07460604]
[1723897168479,0.8442,59195.0,59194.0,0.06778129]
[1723897168778,0.8907,59195.0,59194.0,0.06778129]
[1723897168985,1.0307,59195.0,59194.0,0.06778129]
[1723897169185,1.0307,59195.0,59194.0,0.00025343]
[1723897174072,0.6699,59195.0,59194.0,0.00025343]
[1723897174277,1.0307,59195.0,59194.0,0.00025343]
[1723897174488,0.733236,59195.0,59194.0,0.00025343]
[1723897174679,1.094036,59195.0,59194.0,0.00025343]
[1723897175284,0.733236,59195.0,59194.0,0.00025343]
[1723897175476,1.094036,59195.0,59194.0,0.00025343]
[1723897181785,0.733236,59195.0,59194.0,0.00025343]
[1723897181979,1.094036,59195.0,59194.0,0.00025343]
[1723897182177,1.094036,59195.0,59194.0,0.05086665]
[1723897182492,1.094036,59195.0,59194.0,0.00025343]
[1723897189192,0.06334,59192.0,59189.0,0.05061339]
[1723897189393,0.06334,59192.0,59183.0,0.08438919]
[1723897189394,0.3608,59190.0,59183.0,0.05061339]
[1723897189582,0.063349,59183.0,59182.0,0.05061339]
[1723897189790,0.403349,59183.0,59182.0,0.05061339]
[1723897190090,0.403349,59183.0,59181.0,0.05061339]
[1723897190289,0.063351,59181.0,59180.0,0.09751339]
[1723897190484,0.451351,59181.0,59180.0,0.05061339]
[1723897191187,0.063354,59179.0,59177.0,0.05061388]
[1723897191387,0.4492,59178.0,59177.0,0.05061388]
[1723897191693,0.8092,59178.0,59177.0,0.05061388]
[1723897192278,0.063356,59177.0,59176.0,0.05086731]
[1723897192485,0.063356,59177.0,59176.0,0.00025343]
[1723897192486,0.253356,59177.0,59176.0,0.00025343]
[1723897192785,0.249356,59177.0,59176.0,0.06778129]
[1723897193213,0.249356,59177.0,59176.0,0.00025343]
[1723897193593,0.25821395,59177.0,59176.0,0.07278129]
[1723897194094,0.25821395,59177.0,59176.0,0.00525343]
[1723897194280,0.25821395,59177.0,59176.0,0.0424421]
[1723897194486,0.25821395,59177.0,59176.0,0.0484421]
[1723897195900,0.25821395,59177.0,59176.0,0.04844138]
[1723897196482,0.25821395,59177.0,59176.0,0.11596924]
[1723897197491,0.19985795,59177.0,59176.0,0.11596924]
[1723897198997,0.19985795,59177.0,59176.0,0.01125343]
[1723897200692,0.56065795,59177.0,59176.0,0.01125343]
[1723897204391,0.56065795,59177.0,59176.0,0.06178943]
[1723897204897,0.56065795,59177.0,59176.0,0.01125343]
[1723897208992,0.56065795,59177.0,59176.0,0.07878129]
[1723897209600,0.19985795,59177.0,59176.0,0.07878129]
[1723897209801,0.56065795,59177.0,59176.0,0.07878129]
[1723897210505,0.65405795,59177.0,59176.0,0.07878129]
[1723897211506,0.61180007,59177.0,59176.0,0.01125343]
[1723897212699,0.00985795,59177.0,59176.0,0.01125343]
[1723897212899,0.1034,59177.0,59176.0,0.01125343]
[1723897216805,0.1034,59177.0,59176.0,0.09564262]
[1723897217205,0.1034,59177.0,59176.0,0.22435449]
[1723897217614,0.1034,59177.0,59176.0,0.1399655]
[1723897221513,0.1034,59177.0,59176.0,0.24105263]
[1723897222012,0.1034,59177.0,59176.0,0.1399655]
[1723897227315,0.1034,59177.0,59176.0,0.17715103]
[1723897228117,0.1034,59177.0,59176.0,0.17715111]
[1723897228517,0.1034,59177.0,59176.0,0.21433655]
[1723897229321,0.1034,59177.0,59176.0,0.21433666]
[1723897232231,0.1034,59177.0,59176.0,0.17715105]
[1723897232415,0.1034,59177.0,59176.0,0.21433656]
[1723897235036,0.1034,59177.0,59176.0,0.2143381]
[1723897236216,0.1034,59177.0,59176.0,0.34305368]
[1723897236415,0.1034,59177.0,59176.0,0.21434007]
[1723897236622,0.166756,59177.0,59176.0,0.21434007]
[1723897237824,0.527556,59177.0,59176.0,0.21434007]
[1723897238236,0.527556,59177.0,59176.0,0.04843898]
[1723897239537,0.527556,59177.0,59176.0,0.04343898]
[1723897239827,0.527556,59177.0,59176.0,0.03843898]
[1723897240333,0.527556,59177.0,59176.0,0.03844339]
[1723897241428,0.166756,59177.0,59176.0,0.10596797]
[1723897241632,0.166756,59177.0,59176.0,0.06877801]
[1723897241928,0.527556,59177.0,59176.0,0.10596798]
[1723897242826,0.166756,59177.0,59176.0,0.10596798]
[1723897243233,0.527556,59177.0,59176.0,0.10596798]
[1723897244239,0.527556,59177.0,59176.0,0.06877801]
[1723897244436,0.166756,59177.0,59176.0,0.10596759]
[1723897244641,0.527556,59177.0,59176.0,0.10596759]
[1723897245131,0.166756,59177.0,59176.0,0.10596759]
[1723897245331,0.527556,59177.0,59176.0,0.10596759]
[1723897245747,0.527556,59177.0,59176.0,0.06877801]
[1723897247940,0.166756,59177.0,59176.0,0.06877801]
[1723897248130,0.527556,59177.0,59176.0,0.06877801]
[1723897251535,0.01011398,59178.0,59176.0,0.03844243]
[1723897251732,0.01,59178.0,59177.0,0.34538525]
[1723897251932,0.0934,59179.0,59177.0,0.34538525]
[1723897252133,0.0934,59179.0,59178.0,0.20308525]
[1723897252334,0.0934,59179.0,59178.0,0.20308546]
[1723897253453,0.0964,59179.0,59178.0,0.20308546]
[1723897256434,0.05414505,59179.0,59178.0,0.20308546]
[1723897259345,0.05414505,59179.0,59178.0,0.20308227]
[1723897262049,0.23414505,59179.0,59178.0,0.20308227]
[1723897262550,0.23414505,59179.0,59178.0,0.28740789]
[1723897262942,0.23414505,59179.0,59178.0,0.20308272]
[1723897263450,0.23414505,59179.0,59178.0,0.28740766]
[1723897263946,0.23414505,59179.0,59178.0,0.28740888]
[1723897265650,0.05414505,59179.0,59178.0,0.28740888]
[1723897266844,0.05414505,59179.0,59178.0,0.25021897]
[1723897267050,0.05414505,59179.0,59178.0,0.28740336]
[1723897267846,0.05414505,59179.0,59178.0,0.28740275]
[1723897268651,0.05414505,59179.0,59178.0,0.15869372]
[1723897268956,0.003,59179.0,59178.0,0.15869372]
[1723897269147,0.00025343,59188.0,59178.0,1.69170673]
[1723897269347,0.00025343,59188.0,59187.0,0.0934]
[1723897269549,0.00025343,59188.0,59187.0,0.26730444]
[1723897269748,0.00025343,59188.0,59187.0,0.82108444]
[1723897270142,0.00025343,59188.0,59187.0,0.75685726]
[1723897270342,0.00225343,59188.0,59187.0,0.75685726]
[1723897271244,0.09565343,59188.0,59187.0,0.84100822]
[1723897271446,0.09665343,59188.0,59187.0,0.84100746]
[1723897271647,0.09665343,59188.0,59187.0,0.33412746]
[1723897271846,0.09665343,59188.0,59187.0,0.33412738]
[1723897272149,0.10865343,59188.0,59187.0,0.33612738]
[1723897272353,0.10865343,59188.0,59187.0,0.20744555]
[1723897272548,0.01525343,59188.0,59187.0,0.33612727]
[1723897272948,0.01525343,59188.0,59187.0,0.34621541]
[1723897273357,0.01525343,59188.0,59187.0,0.21752547]
[1723897273554,0.01525343,59188.0,59187.0,0.31092547]
[1723897274260,0.01525343,59188.0,59187.0,0.2267487]
[1723897274446,0.01525343,59188.0,59187.0,0.18956431]
[1723897274948,0.01525343,59188.0,59187.0,0.18956498]
[1723897278260,0.01525343,59188.0,59187.0,0.22674131]
[1723897278560,0.01525343,59188.0,59187.0,0.53349734]
[1723897278760,0.07358929,59195.0,59187.0,0.59684134]
[1723897278954,0.07358929,59195.0,59193.0,0.06730405]
[1723897279363,0.07358929,59195.0,59192.0,0.06730405]
[1723897279563,0.07358929,59195.0,59191.0,0.0934]
[1723897279564,0.07358929,59195.0,59193.0,0.10447941]
[1723897279860,0.08058929,59195.0,59193.0,0.06730405]
[1723897281259,0.08058929,59195.0,59192.0,0.06730405]
[1723897281460,0.07358929,59195.0,59193.0,0.06730405]
[1723897281759,0.064337,59195.0,59193.0,0.06730405]
[1723897281961,0.064337,59195.0,59193.0,0.06830405]
[1723897283554,0.064337,59195.0,59193.0,0.001]
[1723897286456,0.064337,59195.0,59193.0,0.06830405]
[1723897286658,0.0934,59194.0,59193.0,0.002]
[1723897287259,0.0934,59194.0,59193.0,0.06930405]
[1723897287650,0.0934,59194.0,59193.0,0.06830405]
[1723897287861,0.0944,59194.0,59193.0,0.06930405]
[1723897290264,0.0944,59194.0,59193.0,0.002]
[1723897290652,0.001,59194.0,59193.0,0.16273476]
[1723897291062,0.001,59194.0,59193.0,0.0954]
[1723897294159,0.001,59194.0,59193.0,0.10557174]
[1723897295364,0.001,59194.0,59193.0,0.18974851]
[1723897296271,0.001,59194.0,59193.0,0.23424689]
[1723897300468,0.001,59194.0,59193.0,0.27142083]
[1723897300667,0.001,59194.0,59193.0,0.46520705]
[1723897301267,0.001,59194.0,59193.0,0.82600705]
[1723897301477,0.01030869,59202.0,59193.0,1.73280705]
[1723897301670,0.3608,59203.0,59201.0,0.0934]
[1723897301975,0.3608,59203.0,59202.0,0.12867515]
[1723897302385,0.37107143,59203.0,59202.0,0.21299151]
[1723897302565,0.37107143,59203.0,59201.0,0.17772944]
[1723897302871,0.37107143,59203.0,59202.0,0.08432944]
[1723897303467,0.37107143,59203.0,59202.0,0.08532944]
[1723897304276,0.37207143,59203.0,59202.0,0.002]
[1723897308479,0.01127143,59203.0,59202.0,0.002]
[1723897308674,0.49547143,59203.0,59202.0,0.002]
[1723897309065,0.49547143,59203.0,59202.0,0.06941]
[1723897311775,0.49547143,59203.0,59202.0,0.002]
[1723897313583,0.13467143,59203.0,59202.0,0.002]
[1723897313876,0.49547143,59203.0,59202.0,0.03917117]
[1723897315582,0.13467143,59203.0,59202.0,0.03917127]
[1723897315785,0.49547143,59203.0,59202.0,0.03917127]
[1723897318587,0.13467143,59203.0,59202.0,0.03917127]
[1723897318974,0.49547143,59203.0,59202.0,0.03917127]
[1723897319569,0.19799943,59203.0,59202.0,0.03917127]
[1723897319772,0.55879943,59203.0,59202.0,0.03917127]
[1723897319976,0.55779943,59203.0,59202.0,0.03917127]
[1723897320985,0.40107143,59203.0,59202.0,0.03917127]
[1723897321575,0.40107143,59203.0,59202.0,0.16067105]
[1723897321781,0.37107143,59203.0,59202.0,0.16067105]
[1723897322088,0.38107143,59203.0,59202.0,0.15967105]
[1723897322384,0.38107143,59203.0,59202.0,0.16067105]
[1723897322584,0.38107143,59203.0,59202.0,0.12350071]
[1723897322777,0.38107143,59203.0,59202.0,0.16067088]
[1723897324288,0.38107143,59203.0,59202.0,0.28933054]
[1723897324685,0.02027143,59203.0,59202.0,0.28933054]
[1723897324886,0.38107143,59203.0,59202.0,0.28933054]
[1723897325573,0.02027143,59203.0,59202.0,0.28933054]
[1723897325783,0.38107143,59203.0,59202.0,0.28933054]
[1723897326181,0.38107143,59203.0,59202.0,0.25216037]
[1723897326879,0.38107143,59203.0,59202.0,0.2149891]
[1723897327088,0.38107143,59203.0,59202.0,0.25215932]
[1723897327785,0.02027143,59203.0,59202.0,0.25215932]
[1723897327992,0.38107143,59203.0,59202.0,0.25215932]
[1723897328308,0.38107143,59203.0,59202.0,0.16782988]
[1723897330682,0.38107143,59203.0,59202.0,0.26122988]
[1723897330990,0.38107143,59203.0,59202.0,0.2984001]
[1723897331381,0.02027143,59203.0,59202.0,0.2984001]
[1723897331592,0.38107143,59203.0,59202.0,0.2984001]
[1723897333499,0.02027143,59203.0,59202.0,0.2984001]
[1723897333795,0.38107143,59203.0,59202.0,0.2984001]
[1723897333993,0.38107143,59203.0,59202.0,0.25218852]
[1723897334389,0.38107143,59203.0,59202.0,0.03917022]
[1723897335396,0.38107143,59203.0,59202.0,0.03917221]
[1723897335806,0.063329,59202.0,59201.0,0.06750574]
[1723897335981,0.5194,59202.0,59201.0,0.05063813]
[1723897336188,0.582729,59202.0,59201.0,0.05063813]
[1723897336385,0.063331,59200.0,59199.0,0.05063813]
[1723897336591,0.063333,59198.0,59197.0,0.0343847]
[1723897336791,1.013493,59198.0,59196.0,0.0343847]
[1723897337096,0.063341,59191.0,59189.0,0.06750574]
[1723897337295,0.517542,59190.0,59188.0,0.00025343]
[1723897337600,0.627542,59190.0,59188.0,0.00025343]
[1723897337892,0.534142,59190.0,59188.0,0.00025343]
[1723897338097,0.0934,59189.0,59188.0,0.00025343]
[1723897338303,0.1934,59189.0,59188.0,0.00025343]
[1723897338490,0.1934,59189.0,59188.0,0.037436]
[1723897338888,0.1934,59189.0,59188.0,0.00025343]
[1723897339195,0.915,59189.0,59188.0,0.00025343]
[1723897340092,0.9641,59189.0,59188.0,0.00025343]
[1723897340494,0.97601431,59189.0,59188.0,0.00025343]
[1723897341985,0.97701431,59189.0,59188.0,0.00025343]
[1723897342691,0.25541431,59189.0,59188.0,0.00025343]
[1723897343086,0.16201431,59189.0,59188.0,0.00025343]
[1723897343291,0.97701431,59189.0,59188.0,0.00025343]
[1723897344496,0.25541431,59189.0,59188.0,0.00025343]
[1723897344698,0.97701431,59189.0,59188.0,0.00025343]
[1723897345691,0.25541431,59189.0,59188.0,0.00025343]
[1723897346001,0.97701431,59189.0,59188.0,0.00025343]
[1723897347005,1.02371431,59189.0,59188.0,0.00025343]
[1723897347696,1.93055431,59189.0,59188.0,0.00025343]
[1723897348104,1.92855431,59189.0,59188.0,0.00125343]
[1723897348304,1.92955431,59189.0,59188.0,0.00225343]
[1723897349694,1.93255431,59189.0,59188.0,0.00225343]
[1723897350299,2.07255431,59189.0,59188.0,0.00225343]
[1723897351108,1.93255431,59189.0,59188.0,0.00225343]
[1723897351487,1.53255431,59189.0,59188.0,0.00225343]
[1723897352097,0.93231431,59189.0,59188.0,0.00225343]
[1723897352396,1.53255431,59189.0,59188.0,0.00225343]
[1723897352601,1.02571431,59189.0,59188.0,0.00225343]
[1723897353692,1.53255431,59189.0,59188.0,0.00225343]
[1723897355097,1.02571431,59189.0,59188.0,0.00225343]
[1723897356989,1.18571431,59189.0,59188.0,0.00225343]
[1723897357401,1.69255431,59189.0,59188.0,0.00225343]
[1723897358712,1.18571431,59189.0,59188.0,0.00225343]
[1723897359002,0.46411431,59189.0,59188.0,0.00225343]
[1723897359410,1.18571431,59189.0,59188.0,0.00225343]
[1723897362505,1.09231431,59189.0,59188.0,0.00225343]
[1723897362702,1.18571431,59189.0,59188.0,0.00225343]
[1723897363905,1.13901431,59189.0,59188.0,0.00225343]
[1723897364410,0.97901431,59189.0,59188.0,0.00225343]
[1723897371413,0.25741431,59189.0,59188.0,0.00225343]
[1723897371612,0.97901431,59189.0,59188.0,0.00225343]
[1723897372905,0.25741431,59189.0,59188.0,0.00225343]
[1723897373103,0.97901431,59189.0,59188.0,0.00225343]
[1723897375815,0.25741431,59189.0,59188.0,0.00225343]
[1723897376213,0.97901431,59189.0,59188.0,0.00225343]
[1723897377013,0.25741431,59189.0,59188.0,0.00225343]
[1723897377310,0.97901431,59189.0,59188.0,0.00225343]
[1723897378911,0.25741431,59189.0,59188.0,0.00225343]
[1723897379216,0.97901431,59189.0,59188.0,0.00225343]
[1723897380413,1.04235731,59189.0,59188.0,0.00225343]
[1723897381515,0.32075731,59189.0,59188.0,0.00225343]
[1723897381823,1.04235731,59189.0,59188.0,0.00225343]
[1723897382016,0.32075731,59189.0,59188.0,0.00225343]
[1723897382315,1.04235731,59189.0,59188.0,0.00225343]
[1723897383213,0.32075731,59189.0,59188.0,0.00225343]
[1723897383418,1.04235731,59189.0,59188.0,0.00225343]
[1723897386207,0.32075731,59189.0,59188.0,0.00225343]
[1723897386406,1.04235731,59189.0,59188.0,0.00225343]
[1723897387425,0.32075731,59189.0,59188.0,0.00225343]
[1723897387723,1.04235731,59189.0,59188.0,0.00225343]
[1723897388617,0.063349,59183.0,59181.0,0.06750574]
[1723897388920,0.063356,59177.0,59176.0,0.06750574]
[1723897389121,0.063356,59177.0,59171.0,0.08435864]
[1723897389122,0.063358,59175.0,59174.0,0.06750574]
[1723897389420,0.06336,59173.0,59172.0,0.06750574]
[1723897389723,0.52676,59173.0,59172.0,0.06750574]
[1723897390221,0.52676,59173.0,59171.0,0.06750574]
[1723897391220,0.52676,59173.0,59170.0,0.06750574]
[1723897391613,0.53876,59173.0,59171.0,0.001]
[1723897392124,0.3608,59172.0,59171.0,0.001]
[1723897392322,0.7308,59172.0,59171.0,0.001]
[1723897393423,0.7408,59172.0,59171.0,0.001]
[1723897393819,0.7408,59172.0,59169.0,0.21005917]
[1723897394009,0.156762,59171.0,59170.0,0.03819305]
[1723897394214,0.526762,59171.0,59170.0,0.001]
[1723897394615,0.526762,59171.0,59169.0,0.04915343]
[1723897395620,0.537762,59171.0,59170.0,0.001]
[1723897396226,0.546762,59171.0,59170.0,0.001]
[1723897397127,0.526762,59171.0,59169.0,0.04915343]
[1723897397324,0.546762,59171.0,59170.0,0.001]
[1723897397927,0.536762,59171.0,59170.0,0.001]
[1723897398232,0.547762,59171.0,59170.0,0.002]
[1723897398624,0.537762,59171.0,59170.0,0.001]
[1723897398822,0.546762,59171.0,59170.0,0.001]
[1723897399327,0.537762,59171.0,59170.0,0.001]
[1723897399537,0.547762,59171.0,59170.0,0.002]
[1723897400126,0.908562,59171.0,59170.0,0.002]
[1723897400736,0.909562,59171.0,59170.0,0.002]
[1723897401332,1.059562,59171.0,59170.0,0.002]
[1723897402237,1.049562,59171.0,59170.0,0.001]
[1723897402432,1.059562,59171.0,59170.0,0.001]
[1723897403852,0.698762,59171.0,59170.0,0.001]
[1723897404256,1.420362,59171.0,59170.0,0.001]
[1723897404556,0.698762,59171.0,59170.0,0.001]
[1723897404757,1.420362,59171.0,59170.0,0.001]
[1723897407556,0.698762,59171.0,59170.0,0.001]
[1723897407950,1.420362,59171.0,59170.0,0.001]
[1723897408347,0.698762,59171.0,59170.0,0.001]
[1723897408558,1.420362,59171.0,59170.0,0.001]
[1723897409951,0.698762,59171.0,59170.0,0.001]
[1723897410361,1.420362,59171.0,59170.0,0.001]
[1723897410552,0.698762,59171.0,59170.0,0.001]
[1723897410863,1.420362,59171.0,59170.0,0.001]
[1723897411057,0.698762,59171.0,59170.0,0.001]
[1723897411258,1.420362,59171.0,59170.0,0.001]
[1723897411566,0.698762,59171.0,59170.0,0.001]
[1723897411767,1.420362,59171.0,59170.0,0.001]
[1723897412061,0.698762,59171.0,59170.0,0.001]
[1723897412258,1.420362,59171.0,59170.0,0.001]
[1723897412461,0.698762,59171.0,59170.0,0.001]
[1723897412663,1.420362,59171.0,59170.0,0.001]
[1723897413462,0.698762,59171.0,59170.0,0.001]
[1723897413667,1.420362,59171.0,59170.0,0.001]
[1723897414164,0.698762,59171.0,59170.0,0.001]
[1723897414361,1.420362,59171.0,59170.0,0.001]
[1723897414757,0.698762,59171.0,59170.0,0.001]
[1723897414960,1.420362,59171.0,59170.0,0.001]
[1723897415459,0.698762,59171.0,59170.0,0.001]
[1723897415766,1.420362,59171.0,59170.0,0.001]
[1723897416149,0.698762,59171.0,59170.0,0.001]
[1723897416462,1.420362,59171.0,59170.0,0.001]
[1723897416763,0.698762,59171.0,59170.0,0.001]
[1723897417057,1.420362,59171.0,59170.0,0.001]
[1723897418454,0.698762,59171.0,59170.0,0.001]
[1723897418658,1.420362,59171.0,59170.0,0.001]
[1723897419159,0.698762,59171.0,59170.0,0.001]
[1723897419550,1.420362,59171.0,59170.0,0.001]
[1723897420469,0.698762,59171.0,59170.0,0.001]
[1723897420766,1.420362,59171.0,59170.0,0.001]
[1723897429865,0.063363,59170.0,59169.0,0.06775917]
[1723897430078,0.593363,59170.0,59169.0,0.06775917]
[1723897430770,0.954163,59170.0,59169.0,0.06775917]
[1723897431068,0.968163,59170.0,59169.0,0.06775917]
[1723897432065,0.832163,59170.0,59169.0,0.00025343]
[1723897439081,0.471363,59170.0,59169.0,0.00025343]
[1723897439270,0.832163,59170.0,59169.0,0.00025343]
[1723897441272,0.471363,59170.0,59169.0,0.00025343]
[1723897441475,0.832163,59170.0,59169.0,0.00025343]
[1723897441984,0.982163,59170.0,59169.0,0.00025343]
[1723897443068,0.621363,59170.0,59169.0,0.00025343]
[1723897443470,0.982163,59170.0,59169.0,0.00025343]
[1723897443679,0.982163,59170.0,59169.0,0.03744948]
[1723897444485,0.621363,59170.0,59169.0,0.03744948]
[1723897444694,0.982163,59170.0,59169.0,0.03744948]
[1723897445481,0.832163,59170.0,59169.0,0.03744948]
[1723897446782,0.471363,59170.0,59169.0,0.03744948]
[1723897446983,0.832163,59170.0,59169.0,0.00025343]
[1723897447177,0.832163,59170.0,59169.0,0.03744939]
[1723897451190,0.832163,59170.0,59169.0,0.03744938]
[1723897451489,0.471363,59170.0,59169.0,0.03744938]
[1723897451677,0.832163,59170.0,59169.0,0.03744938]
[1723897453588,0.471363,59170.0,59169.0,0.03744938]
[1723897453784,0.832163,59170.0,59169.0,0.03744938]
[1723897454989,0.471363,59170.0,59169.0,0.00025343]
[1723897455185,0.832163,59170.0,59169.0,0.03744939]
[1723897455786,0.832163,59170.0,59169.0,0.00025343]
[1723897456189,0.925563,59170.0,59169.0,0.00025343]
[1723897457990,0.925563,59170.0,59169.0,0.03744939]
[1723897459189,0.925563,59170.0,59169.0,0.00025343]
[1723897459385,0.564763,59170.0,59169.0,0.03744939]
[1723897459593,0.925563,59170.0,59169.0,0.03744939]
[1723897459993,0.564763,59170.0,59169.0,0.03744939]
[1723897460298,0.925563,59170.0,59169.0,0.03744939]
[1723897460598,0.564763,59170.0,59169.0,0.03744939]
[1723897460796,0.925563,59170.0,59169.0,0.03744939]
[1723897461294,0.564763,59170.0,59169.0,0.03744939]
[1723897461597,0.832163,59170.0,59169.0,0.03744939]
[1723897463096,0.7688,59170.0,59169.0,0.29677788]
[1723897463285,0.7688,59170.0,59169.0,0.29677626]
[1723897463490,0.7688,59170.0,59169.0,0.16803851]
[1723897464200,0.7688,59170.0,59169.0,0.16803918]
[1723897465587,0.7688,59170.0,59169.0,0.13084565]
[1723897467194,0.7688,59170.0,59169.0,0.16803886]
[1723897467899,0.3608,59175.0,59172.0,0.06336]
[1723897468197,0.3608,59175.0,59174.0,0.0934]
[1723897468403,0.3608,59175.0,59174.0,0.76074066]
[1723897468589,0.3608,59175.0,59174.0,1.26770066]
[1723897469100,0.3748,59175.0,59174.0,1.26769943]
[1723897469402,0.00025343,59180.0,59174.0,1.62849904]
[1723897469592,0.00025343,59180.0,59179.0,0.0934]
[1723897469792,0.00025343,59180.0,59179.0,0.16777299]
[1723897470292,0.01051316,59180.0,59179.0,0.16777299]
[1723897470493,0.00025343,59180.0,59179.0,0.16777299]
[1723897470799,0.00025343,59180.0,59179.0,1.07469299]
[1723897471000,0.063342,59190.0,59179.0,1.26070038]
[1723897471200,0.063342,59190.0,59189.0,0.0934]
[1723897471403,0.163342,59190.0,59189.0,0.0934]
[1723897472293,0.17316451,59190.0,59189.0,0.0934]
[1723897472996,0.17316451,59190.0,59189.0,0.0944]
[1723897473501,0.18716451,59190.0,59189.0,0.0954]
[1723897474904,0.54796451,59190.0,59189.0,0.0954]
[1723897475596,0.54796451,59190.0,59189.0,0.002]
[1723897482806,0.18716451,59190.0,59189.0,0.002]
[1723897483008,0.54796451,59190.0,59189.0,0.002]
[1723897484699,0.18716451,59190.0,59189.0,0.002]
[1723897484900,0.54796451,59190.0,59189.0,0.002]
[1723897485501,0.54796451,59190.0,59189.0,0.001]
[1723897485698,0.55696451,59190.0,59189.0,0.002]
[1723897486099,0.19616451,59190.0,59189.0,0.002]
[1723897486301,0.55696451,59190.0,59189.0,0.002]
[1723897486706,0.19616451,59190.0,59189.0,0.002]
[1723897487007,0.55696451,59190.0,59189.0,0.002]
[1723897487202,0.19616451,59190.0,59189.0,0.002]
[1723897487515,0.55696451,59190.0,59189.0,0.002]
[1723897490405,0.19616451,59190.0,59189.0,0.002]
[1723897490601,0.55696451,59190.0,59189.0,0.002]
[1723897491808,0.19616451,59190.0,59189.0,0.002]
[1723897492410,0.55696451,59190.0,59189.0,0.002]
[1723897493300,0.55696451,59190.0,59189.0,0.05250382]
[1723897494401,0.55696451,59190.0,59189.0,0.002]
[1723897495501,0.19616451,59190.0,59189.0,0.002]
[1723897496405,0.19616451,59190.0,59189.0,0.06933843]
[1723897497409,0.19616451,59190.0,59189.0,0.002]
[1723897502613,0.19616451,59190.0,59189.0,0.13069001]
[1723897503010,0.13282251,59190.0,59189.0,0.13069001]
[1723897505508,0.03282251,59190.0,59189.0,0.13069001]
[1723897505709,0.05282251,59190.0,59189.0,0.13069001]
[1723897506408,0.03282251,59190.0,59189.0,0.13069001]